fUST/lending_fUST_20250415
["ID","MTS","AMOUNT","RATE_DAILY","PERIOD"]
[358037177,1744662633152,-500.0,0.0002406,2]
[358037178,1744662633161,-500.0,0.0002406,2]
[358037179,1744662633172,-500.0,0.0002406,2]
[358037180,1744662633182,-500.0,0.0002406,2]
[358037181,1744662633192,-500.0,0.0002406,2]
[358037182,1744662633202,-550.0,0.0002406,2]
[358037183,1744662633212,-3374.79601917,0.0002406,2]
[358037184,1744662633326,-4075.382302,0.0002406,2]
[358037185,1744662633336,-500.0,0.000241,2]
[358037186,1744662633345,-500.0,0.000244,2]
[358037187,1744662633356,-500.0,0.000244,2]
[358037188,1744662633366,-274.79011793,0.00024802,2]
[358037189,1744662633376,-500.0,0.00024802,2]
[358037190,1744662633386,-9580.8332018,0.00024803,2]
[358037191,1744662633396,-2627.69174569,0.00024842,2]
[358037192,1744662633406,-250.0,0.00024942,2]
[358037193,1744662633416,-152.0,0.00024942,2]
[358037194,1744662633427,-500.0,0.00024973,2]
[358037195,1744662633436,-4309.19052521,0.00025,2]
[358037196,1744662633447,-3817.0983997,0.00025,2]
[358037197,1744662633457,-61828.67173463,0.00025,2]
[358037198,1744662633473,-5364.88073575,0.00025,2]
[358037199,1744662633483,-5238.8486834,0.00025053,2]
[358037200,1744662633493,-420.0,0.00026089,2]
[358037201,1744662633503,-420.0,0.00026208,2]
[358037202,1744662633513,-160.0,0.00026373,2]
[358037203,1744662633524,-160.0,0.00026373,2]
[358037204,1744662633535,-12547.34863188,0.00026373,2]
[358037205,1744662633546,-160.0,0.0002639,2]
[358037206,1744662633557,-160.0,0.0002639,2]
[358037207,1744662633567,-500.0,0.000264,2]
[358037208,1744662633576,-500.0,0.000264,2]
[358037209,1744662633587,-500.0,0.000264,2]
[358037210,1744662633599,-500.0,0.000264,2]
[358037211,1744662633610,-500.0,0.000264,2]
[358037212,1744662633621,-5706.78501741,0.0002699,2]
[358037213,1744662633632,-8275.65907681,0.00027071,2]
[358037214,1744662633642,-207.4,0.0002715,2]
[358037215,1744662633652,-41008.2271644,0.00027157,2]
[358037216,1744662633676,-41008.2271644,0.00027167,2]
[358037217,1744662633687,-41008.2271644,0.00027177,2]
[358037218,1744662633698,-68424.03067944,0.00027187,2]
[358037219,1744662633708,-4695.83502606,0.00027187,3]
[358037220,1744662633718,-76972.13451042,0.00027187,2]
[358037221,1744662633729,-170.0,0.000272,120]
[358037222,1744662633739,-8688.83041756,0.00027251,2]
[358037228,1744662638538,-500.0,0.00024802,2]
[358037229,1744662638548,-500.0,0.00024802,2]
[358037230,1744662638558,-573.10999962,0.00024802,2]
[358037231,1744662638568,-500.0,0.00024802,2]
[358037232,1744662638577,-500.0,0.00024802,2]
[358037233,1744662638587,-368.7550855,0.00024802,2]
[358037234,1744662638597,-2797.5823326,0.000259,6]
[358037235,1744662638647,-138.24018555,0.000259,6]
[358037236,1744662638656,-2935.82251793,0.0002659,6]
[358037237,1744662638666,-3787.49402735,0.00027251,2]
[358037238,1744662638678,-4037.2516881,0.00027251,2]
[358037397,1744662643761,-1186.19617477,0.00027251,2]
[358037398,1744662643773,-1228.16295939,0.00027251,2]
[358037399,1744662643787,-1040.2000015,0.00027251,2]
[358037400,1744662643799,-947.54034608,0.00027251,2]
[358037411,1744662646529,-1424.35250129,0.00027251,2]
[358037432,1744663196047,-345.152179,0.00022694,2]
[358037433,1744663196075,-300.0,0.00023054,2]
[358037434,1744663196101,-300.0,0.00023054,2]
[358037435,1744663196131,-500.0,0.00023055,2]
[358037436,1744663196157,-184.22413723,0.00023055,2]
[358037437,1744663196188,-500.0,0.00023055,2]
[358037438,1744663196218,-500.0,0.00023055,2]
[358037439,1744663196245,-500.0,0.00023055,2]
[358037440,1744663196274,-500.0,0.00023055,2]
[358037441,1744663196305,-500.0,0.00023055,2]
[358037442,1744663196332,-500.0,0.00023055,2]
[358037443,1744663196360,-500.0,0.00023055,2]
[358037444,1744663196388,-500.0,0.00023055,2]
[358037445,1744663196419,-500.0,0.00023055,2]
[358037446,1744663196447,-500.0,0.00023055,2]
[358037447,1744663196474,-500.0,0.00023055,2]
[358037448,1744663196504,-500.0,0.00023055,2]
[358037449,1744663196532,-500.0,0.00023055,2]
[358037450,1744663196558,-500.0,0.00023055,2]
[358037451,1744663196588,-500.0,0.00023055,2]
[358037452,1744663196615,-500.0,0.00023055,2]
[358037453,1744663196644,-500.0,0.00023055,2]
[358037454,1744663196671,-500.0,0.00023055,2]
[358037455,1744663196974,-249.42846943,0.00023055,2]
[358037456,1744663197005,-500.0,0.00023055,2]
[358037457,1744663197036,-500.0,0.00023055,2]
[358037458,1744663197063,-500.0,0.00023055,2]
[358037459,1744663197090,-500.0,0.00023055,2]
[358037460,1744663197124,-500.0,0.00023055,2]
[358037461,1744663197152,-500.0,0.00023055,2]
[358037462,1744663197183,-500.0,0.00023055,2]
[358037463,1744663197210,-500.0,0.00023055,2]
[358037464,1744663197238,-500.0,0.00023055,2]
[358037465,1744663197268,-500.0,0.00023055,2]
[358037466,1744663197296,-500.0,0.00023055,2]
[358037467,1744663197323,-500.0,0.00023055,2]
[358037468,1744663197349,-500.0,0.00023055,2]
[358037469,1744663197378,-500.0,0.00023055,2]
[358037470,1744663197404,-500.0,0.00023055,2]
[358037471,1744663197430,-500.0,0.00023055,2]
[358037472,1744663197458,-500.0,0.00023055,2]
[358037473,1744663197491,-500.0,0.00023055,2]
[358037474,1744663197517,-500.0,0.00023055,2]
[358037475,1744663197547,-500.0,0.00023055,2]
[358037476,1744663197575,-500.0,0.00023055,2]
[358037477,1744663197600,-500.0,0.00023055,2]
[358037478,1744663197629,-500.0,0.00023055,2]
[358037479,1744663197655,-500.0,0.00023055,2]
[358037480,1744663197681,-650.0,0.00023055,2]
[358037481,1744663197706,-500.0,0.00023055,2]
[358037482,1744663197735,-500.0,0.00023055,2]
[358037483,1744663197760,-500.0,0.00023055,2]
[358037484,1744663197786,-552.5986969,0.00023055,2]
[358037485,1744663197814,-500.0,0.00023055,2]
[358037486,1744663197840,-500.0,0.00023055,2]
[358037487,1744663197870,-500.0,0.00023055,2]
[358037488,1744663197898,-500.0,0.00023055,2]
[358037489,1744663197926,-499.99999999,0.00023055,2]
[358037490,1744663197952,-500.0,0.00023055,2]
[358037491,1744663197978,-500.0,0.00023055,2]
[358037492,1744663198004,-493.40981505,0.00023055,2]
[358037493,1744663198029,-26955.3697789,0.00023056,2]
[358037494,1744663198055,-24900.0,0.00023057,2]
[358037495,1744663198079,-500.0,0.00023073,2]
[358037496,1744663198104,-500.0,0.00023073,2]
[358037497,1744663198132,-1144.1243284,0.00023143,2]
[358037498,1744663198157,-1000.0,0.000239,2]
[358037499,1744663203882,500.0,0.00023073,2]
[358037500,1744663292715,1000.0,0.00022593,2]
[358037501,1744663329567,250.0,0.00022593,2]
[358037503,1744663436344,1000.0,0.00023944,2]
[358037504,1744663455506,250.0,0.00023944,2]
[358037506,1744663560405,250.0,0.00023944,2]
[358037507,1744663573975,500.0,0.00023944,2]
[358037510,1744663686176,250.0,0.00023957,2]
[358037523,1744663836447,-500.0,0.00024057,2]
[358037524,1744663836458,-171.19814605,0.00026363,2]
[358037525,1744663836468,-500.0,0.0002637,2]
[358037526,1744663836477,-500.0,0.0002637,2]
[358037527,1744663836486,-500.0,0.0002637,2]
[358037528,1744663836495,-500.0,0.0002637,2]
[358037529,1744663836503,-500.0,0.0002637,2]
[358037530,1744663836513,-500.0,0.0002637,2]
[358037531,1744663836522,-500.0,0.0002637,2]
[358037532,1744663836531,-500.0,0.0002637,2]
[358037533,1744663836541,-500.0,0.0002637,2]
[358037534,1744663836550,-172.51096632,0.0002637,2]
[358037535,1744663836559,-500.0,0.0002637,2]
[358037537,1744663836568,-165.0,0.0002637,2]
[358037539,1744663836577,-505.46527031,0.0002637,2]
[358037541,1744663836586,-500.0,0.0002637,2]
[358037543,1744663836596,-500.0,0.0002637,2]
[358037545,1744663836605,-500.0,0.0002637,2]
[358037547,1744663836614,-500.0,0.0002637,2]
[358037549,1744663836624,-500.0,0.0002637,2]
[358037551,1744663836633,-500.0,0.0002637,2]
[358037553,1744663836643,-500.0,0.0002637,2]
[358037555,1744663836652,-300.0,0.0002637,2]
[358037557,1744663836662,-160.0,0.0002637,2]
[358037559,1744663836672,-160.0,0.0002637,2]
[358037561,1744663836682,-12547.34863188,0.0002637,2]
[358037563,1744663836694,-160.0,0.00026371,2]
[358037565,1744663836704,-300.0,0.00026371,2]
[358037566,1744663836713,-285.99524619,0.00026372,2]
[358037567,1744663836723,-2740.10101687,0.000269,7]
[358037568,1744663836733,-1589.20613698,0.0002697,2]
[358037569,1744663836745,-710.02414049,0.0002697,2]
[358037570,1744663836755,-6620.52726144,0.00027041,2]
[358037571,1744663836766,-6620.52726144,0.0002707,2]
[358037572,1744663836775,-6620.52726144,0.00027099,2]
[358037573,1744663836784,-152.0,0.00027119,2]
[358037574,1744663836795,-6620.52726144,0.00027128,2]
[358037575,1744663836804,-151.0,0.00027135,2]
[358037576,1744663836814,-193.55946868,0.00027135,2]
[358037577,1744663836823,-151.0,0.00027135,2]
[358037578,1744663836833,-207.4,0.00027135,2]
[358037579,1744663836843,-500.0,0.0002714,2]
[358037580,1744663836853,-500.0,0.0002714,2]
[358037581,1744663836862,-251.17699973,0.0002714,2]
[358037582,1744663836872,-500.0,0.0002714,2]
[358037583,1744663836881,-613.90330681,0.0002714,2]
[358037584,1744663836891,-500.0,0.0002714,2]
[358037585,1744663836900,-34204.8288508,0.00027141,2]
[358037586,1744663836910,-11255.7032345,0.00027142,2]
[358037587,1744663836922,-325.05563696,0.00027142,2]
[358037588,1744663836934,-762.31921696,0.00027142,2]
[358037589,1744663836951,-15827.4413406,0.00027142,2]
[358037590,1744663836963,-113835.20432563,0.00027142,2]
[358037638,1744663838703,-160.0,0.0002637,2]
[358037640,1744663838712,-349.765,0.00027142,2]
[358037642,1744663838724,-991.30369863,0.00027142,2]
[358037644,1744663838736,-268.735003,0.00027142,2]
[358037647,1744663838748,-252.15239808,0.00027142,2]
[358037649,1744663838767,-1000.0,0.00027142,2]
[358037656,1744663838823,-94566.12210064,0.00027142,2]
[358037659,1744663838836,-15352.40035814,0.00027151,2]
[358038206,1744663844539,-8062.56301185,0.00027151,2]
[358038449,1744663846908,-3775.00320901,0.00027151,2]
[358038451,1744663846920,-18053.92313449,0.00027151,2]
[358040035,1744665031774,-183.8430431,0.00023829,2]
[358040036,1744665031784,-300.0,0.00023856,2]
[358040037,1744665031794,-2804.76038504,0.00023857,2]
[358040038,1744665031803,-500.0,0.00023857,2]
[358040039,1744665031814,-500.0,0.00023857,2]
[358040040,1744665031824,-346.71183527,0.00023857,2]
[358040041,1744665031833,-230.30919313,0.00023957,2]
[358040042,1744665031843,-2218.26952106,0.00024753,2]
[358040043,1744665031855,-72.86146984,0.00024753,2]
[358040044,1744665031864,-500.0,0.00024852,2]
[358040045,1744665031873,-500.0,0.00024852,2]
[358040046,1744665031883,-500.0,0.00024852,2]
[358040047,1744665031892,-500.0,0.00024852,2]
[358040048,1744665031902,-500.0,0.00024852,2]
[358040049,1744665031914,-500.0,0.00024852,2]
[358040050,1744665031924,-500.0,0.00024852,2]
[358040051,1744665031934,-529.39444056,0.00024852,2]
[358040052,1744665031944,-500.0,0.00024852,2]
[358040053,1744665031954,-500.0,0.00024852,2]
[358040054,1744665031964,-349.07690315,0.00024852,2]
[358040055,1744665031974,-500.0,0.00024852,2]
[358040056,1744665031983,-500.0,0.00024852,2]
[358040057,1744665031993,-500.0,0.00024852,2]
[358040058,1744665032002,-500.0,0.00024852,2]
[358040059,1744665032012,-500.0,0.00024852,2]
[358040060,1744665032022,-500.0,0.00024852,2]
[358040061,1744665032032,-500.0,0.00024852,2]
[358040062,1744665032041,-500.0,0.00024852,2]
[358040063,1744665032051,-500.0,0.00024852,2]
[358040064,1744665032060,-500.0,0.00024852,2]
[358040065,1744665032070,-500.0,0.00024852,2]
[358040066,1744665032079,-500.0,0.00024852,2]
[358040067,1744665032089,-500.0,0.00024852,2]
[358040068,1744665032098,-500.0,0.00024852,2]
[358040069,1744665032108,-500.0,0.00024852,2]
[358040070,1744665032118,-500.0,0.00024852,2]
[358040071,1744665032127,-500.0,0.00024852,2]
[358040072,1744665032137,-500.0,0.00024852,2]
[358040073,1744665032147,-500.0,0.00024852,2]
[358040074,1744665032156,-500.0,0.00024852,2]
[358040075,1744665032166,-500.0,0.00024852,2]
[358040076,1744665032175,-500.0,0.00024852,2]
[358040077,1744665032185,-500.0,0.00024852,2]
[358040078,1744665032194,-500.0,0.00024852,2]
[358040079,1744665032203,-500.0,0.00024852,2]
[358040080,1744665032214,-293.23836144,0.00024852,2]
[358040081,1744665032223,-500.0,0.00024852,2]
[358040082,1744665032233,-500.0,0.00024852,2]
[358040083,1744665032242,-500.0,0.00024852,2]
[358040084,1744665032252,-500.0,0.00024852,2]
[358040085,1744665032262,-500.0,0.00024852,2]
[358040086,1744665032271,-500.0,0.00024852,2]
[358040087,1744665032282,-500.0,0.00024852,2]
[358040088,1744665032292,-500.0,0.00024852,2]
[358040089,1744665032302,-500.0,0.00024852,2]
[358040090,1744665032311,-500.0,0.00024852,2]
[358040091,1744665032321,-500.0,0.00024852,2]
[358040092,1744665032331,-500.0,0.00024852,2]
[358040093,1744665032340,-300.00000001,0.00024852,2]
[358040094,1744665032350,-500.0,0.00024852,2]
[358040095,1744665032360,-500.0,0.00024852,2]
[358040096,1744665032369,-500.0,0.00024852,2]
[358040097,1744665032377,-407.63060584,0.00024852,2]
[358040098,1744665032387,-500.0,0.00024852,2]
[358040099,1744665032397,-320.88130019,0.00024853,2]
[358040100,1744665032406,-16380.38885623,0.00024853,2]
[358040101,1744665032415,-24900.0,0.00024855,2]
[358040102,1744665032424,-508.34259293,0.00024873,2]
[358040103,1744665032433,-500.0,0.00024873,2]
[358040104,1744665032443,-636.9400346,0.00024873,2]
[358040105,1744665032452,-500.0,0.00024873,2]
[358040106,1744665032461,-500.0,0.00024873,2]
[358040107,1744665032471,-500.0,0.00024873,2]
[358040108,1744665032480,-500.0,0.00024873,2]
[358040109,1744665032490,-500.0,0.00024873,2]
[358040110,1744665032499,-500.0,0.00024873,2]
[358040111,1744665032508,-500.0,0.00024873,2]
[358040112,1744665032517,-500.0,0.00024873,2]
[358040113,1744665032526,-500.0,0.00024873,2]
[358040114,1744665032535,-500.0,0.00024873,2]
[358040115,1744665032545,-622.57780299,0.00024873,2]
[358040116,1744665032556,-500.0,0.00024873,2]
[358040117,1744665032565,-500.0,0.00024873,2]
[358040118,1744665032804,-500.0,0.00024873,2]
[358040119,1744665032834,-2667.41157233,0.000249,5]
[358040120,1744665032844,-2000.0,0.00025,7]
[358040121,1744665032854,-2667.41157204,0.00025624,6]
[358040122,1744665032865,-172.576089,0.00025674,2]
[358040123,1744665032875,-4763.19462392,0.000259,2]
[358040124,1744665032885,-420.0,0.00025993,2]
[358040125,1744665032902,-192.35308256,0.00026091,2]
[358040126,1744665032916,-500.0,0.00026091,2]
[358040127,1744665032926,-525.82389981,0.00026091,2]
[358040128,1744665032937,-479.73231477,0.00026091,2]
[358040129,1744665032947,-500.0,0.00026091,2]
[358040130,1744665032957,-21237.2065001,0.00026092,2]
[358040131,1744665032968,-160.0,0.00026102,2]
[358040132,1744665032978,-160.0,0.00026102,2]
[358040133,1744665032988,-2962.30656894,0.00026102,2]
[358040162,1744665038026,-5541.14701187,0.00026102,2]
[358040175,1744665038139,-4043.89505107,0.00026102,2]
[358040177,1744665038150,-160.0,0.00026102,2]
[358040179,1744665038162,-3450.264969,0.00026103,2]
[358040181,1744665038173,-2667.41157204,0.00026348,6]
[358040183,1744665038183,-1360.03398271,0.00026941,2]
[358040185,1744665038193,-1360.03398269,0.00026964,2]
[358040188,1744665038203,-1360.03398269,0.00026987,2]
[358040190,1744665038213,-1360.03398269,0.00027009,2]
[358040192,1744665038224,-151.0,0.00027025,2]
[358040194,1744665038234,-151.0,0.00027025,2]
[358040196,1744665038243,-151.0,0.00027025,2]
[358040198,1744665038254,-151.0,0.00027025,2]
[358040200,1744665038263,-151.0,0.00027025,2]
[358040202,1744665038273,-151.0,0.00027025,2]
[358040204,1744665038284,-151.0,0.00027025,2]
[358040206,1744665038294,-151.0,0.00027025,2]
[358040208,1744665038304,-151.0,0.00027025,2]
[358040211,1744665038314,-151.0,0.00027025,2]
[358040213,1744665038323,-151.0,0.00027025,2]
[358040215,1744665038333,-151.0,0.00027025,2]
[358040217,1744665038342,-151.0,0.00027025,2]
[358040219,1744665038352,-151.0,0.00027025,2]
[358040221,1744665038366,-151.0,0.00027025,2]
[358040223,1744665038376,-151.0,0.00027025,2]
[358040225,1744665038386,-151.0,0.00027025,2]
[358040227,1744665038396,-207.4,0.00027025,2]
[358040229,1744665038406,-1360.03398269,0.00027032,2]
[358040231,1744665038416,-21237.2065001,0.00027041,2]
[358040233,1744665038426,-61708.55044587,0.00027042,2]
[358040235,1744665038442,-1000.0,0.00027042,2]
[358040237,1744665038454,-1444.79257705,0.00027042,2]
[358040240,1744665038466,-686.54162431,0.00027042,2]
[358040399,1744665040114,-2696.99999992,0.00027042,2]
[358040406,1744665040172,-4773.83189452,0.00027042,2]
[358040409,1744665040185,-16839.95122296,0.00027042,2]
[358040611,1744665043033,-3682.13468578,0.00027042,2]
[358040612,1744665043096,-5376.0,0.00027042,2]
[358040613,1744665043107,-635.07944737,0.00027042,2]
[358040614,1744665043119,-530.9742743,0.00027042,2]
[358040615,1744665043131,-2767.60354912,0.00027042,2]
[358040616,1744665043150,-2086.8534869,0.00027042,2]
[358040617,1744665043170,-3498.000002,0.00027042,2]
[358040801,1744665046052,-12954.41473508,0.00027042,2]
[358040946,1744666231907,-329.00012673,0.00023404,2]
[358040953,1744666231966,-4829.32411066,0.00023404,2]
[358040955,1744666231977,-750.0,0.00023504,2]
[358040957,1744666231987,-300.0,0.00023603,2]
[358040959,1744666231996,-300.0,0.00023603,2]
[358040961,1744666232005,-172.5760902,0.00023604,2]
[358040963,1744666232015,-2395.5970521,0.00023604,2]
[358040965,1744666232024,-708.6594955,0.00024246,2]
[358040967,1744666232035,-2400.67041501,0.000249,5]
[358040969,1744666232044,-1626.999999,0.00025,2]
[358040971,1744666232053,-2586.77275095,0.00025507,2]
[358040973,1744666232063,-22199.52405644,0.000256,2]
[358040975,1744666232073,-420.0,0.00025607,2]
[358040977,1744666232082,-2400.67041483,0.00025624,6]
[358040979,1744666232092,-420.0,0.00025724,2]
[358040981,1744666232101,-534.90610227,0.00025737,2]
[358040983,1744666232111,-500.0,0.00025737,2]
[358040985,1744666232120,-500.0,0.00025737,2]
[358040987,1744666232130,-500.0,0.00025737,2]
[358040989,1744666232142,-500.0,0.00025737,2]
[358040991,1744666232152,-500.0,0.00025737,2]
[358040993,1744666232161,-176.43558566,0.00025737,2]
[358040995,1744666232171,-500.0,0.00025737,2]
[358040997,1744666232180,-601.06744173,0.00025737,2]
[358040999,1744666232190,-500.0,0.00025737,2]
[358041001,1744666232199,-500.0,0.00025737,2]
[358041003,1744666232209,-500.0,0.00025737,2]
[358041005,1744666232220,-500.0,0.00025737,2]
[358041007,1744666232229,-500.0,0.00025737,2]
[358041009,1744666232238,-500.0,0.00025737,2]
[358041011,1744666232248,-500.0,0.00025737,2]
[358041013,1744666232258,-500.0,0.00025737,2]
[358041015,1744666232267,-500.0,0.00025737,2]
[358041017,1744666232277,-500.0,0.00025737,2]
[358041019,1744666232287,-500.0,0.00025737,2]
[358041021,1744666232296,-280.89204843,0.00025737,2]
[358041023,1744666232305,-500.0,0.00025737,2]
[358041025,1744666232315,-500.0,0.00025737,2]
[358041027,1744666232324,-24900.0,0.00025738,2]
[358041029,1744666232333,-500.0,0.00025773,2]
[358041031,1744666232343,-500.0,0.00025773,2]
[358041033,1744666232352,-500.0,0.00025773,2]
[358041035,1744666232361,-500.0,0.00025773,2]
[358041037,1744666232371,-152.0,0.00025776,2]
[358041039,1744666232380,-17543.94624236,0.000258,2]
[358041041,1744666232390,-160.0,0.00025977,2]
[358041043,1744666232400,-160.0,0.00025977,2]
[358041045,1744666232410,-9632.31567487,0.00025977,2]
[358041047,1744666232422,-2915.03295701,0.00025977,2]
[358041049,1744666232432,-160.0,0.00025977,2]
[358041051,1744666232441,-500.0,0.00026073,2]
[358041053,1744666232450,-2400.67041483,0.00026348,6]
[358041055,1744666232460,-6515.17288326,0.0002658,2]
[358041057,1744666232472,-293.61015655,0.0002658,2]
[358041060,1744666232483,-8092.83510689,0.0002658,2]
[358041062,1744666232493,-2876.9,0.0002659,6]
[358041064,1744666232503,-2876.9,0.0002659,6]
[358041066,1744666232512,-2876.9,0.0002659,6]
[358041068,1744666232521,-2876.9,0.0002659,6]
[358041070,1744666232531,-174.68285286,0.00026832,2]
[358041071,1744666232540,-174.68285284,0.00026875,2]
[358041074,1744666232550,-174.68285284,0.00026919,2]
[358041075,1744666232559,-151.0,0.00026925,2]
[358041077,1744666232571,-207.4,0.00026925,2]
[358041081,1744666232592,-14901.6181467,0.00026931,2]
[358041083,1744666232603,-14656.44556368,0.00026931,2]
[358041833,1744666243073,-194.80542832,0.00026574,2]
[358041835,1744666243084,-500.0,0.00026574,2]
[358041837,1744666243094,-368.07672987,0.00026574,2]
[358041839,1744666243104,-500.0,0.00026574,2]
[358041841,1744666243114,-47.08131022,0.00026574,2]
[358041843,1744666243126,-452.91868978,0.00026574,2]
[358041845,1744666243137,-219.95405485,0.00026574,2]
[358041847,1744666243152,-245.17258302,0.00026931,2]
[358041848,1744666243162,-16003.38865635,0.00026931,2]
[358041849,1744666243174,-1842.15314621,0.00026931,2]
[358041850,1744666243187,-87062.11972856,0.00026931,2]
[358041851,1744666243200,-367.93600617,0.00026931,2]
[358041852,1744666243371,-7641.77518516,0.00026931,2]
[358041855,1744666243384,-6295.57245055,0.00026931,2]
[358041857,1744666243393,-532.48891735,0.00026931,2]
[358041859,1744666243403,-3695.82532192,0.0002694,3]
[358041861,1744666243413,-16945.87323852,0.00026941,2]
[358042134,1744666246315,-3352.28748774,0.00026941,2]
[358042136,1744666246327,-527.1500001,0.00026941,2]
[358042703,1744667432154,-316.563934,0.00023304,2]
[358042705,1744667432166,-13.22984474,0.00023304,2]
[358042707,1744667432176,-854.07696026,0.00024572,2]
[358043320,1744667438216,-158.95537704,0.00024572,2]
[358043322,1744667438226,-154.0,0.00025,2]
[358043324,1744667438237,-158.59001005,0.00025397,2]
[358043326,1744667438251,-141.40998995,0.00025397,2]
[358043328,1744667438262,-300.0,0.00025397,2]
[358043330,1744667438272,-11316.2236586,0.00025398,2]
[358043332,1744667438282,-18597.2976425,0.00025747,2]
[358043335,1744667438292,-174.68285284,0.00026731,2]
[358043336,1744667438303,-151.0,0.00026815,2]
[358043337,1744667438313,-151.0,0.00026815,2]
[358043338,1744667438322,-151.0,0.00026815,2]
[358043339,1744667438332,-297.98280144,0.00026815,2]
[358043340,1744667438343,-207.4,0.00026815,2]
[358043342,1744667438354,-500.043,0.00026819,2]
[358043344,1744667438364,-500.0,0.00026819,2]
[358043346,1744667438374,-500.0,0.00026819,2]
[358043348,1744667438383,-344.49900159,0.00026819,2]
[358043350,1744667438393,-500.0,0.00026819,2]
[358043352,1744667438404,-500.0,0.00026819,2]
[358043354,1744667438414,-500.0,0.00026819,2]
[358043356,1744667438423,-500.0,0.00026819,2]
[358043358,1744667438434,-500.0,0.00026819,2]
[358043361,1744667438444,-500.0,0.00026819,2]
[358043363,1744667438454,-154.30027066,0.00026819,2]
[358043365,1744667438472,-345.69972934,0.00026819,2]
[358043368,1744667438482,-12.77488357,0.00026819,2]
[358043895,1744667443734,-487.22511643,0.00026819,2]
[358043897,1744667443744,-500.0,0.00026819,2]
[358043899,1744667443754,-500.0,0.00026819,2]
[358043901,1744667443763,-500.0,0.00026819,2]
[358043903,1744667443772,-500.0,0.00026819,2]
[358043905,1744667443782,-500.0,0.00026819,2]
[358043907,1744667443792,-500.0,0.00026819,2]
[358043909,1744667443802,-500.0,0.00026819,2]
[358043911,1744667443813,-500.0,0.00026819,2]
[358043913,1744667443823,-500.0,0.00026819,2]
[358043915,1744667443832,-500.0,0.00026819,2]
[358043917,1744667443843,-251.05504072,0.00026819,2]
[358043919,1744667443852,-500.0,0.00026819,2]
[358043921,1744667443862,-500.0,0.00026819,2]
[358043923,1744667443871,-500.0,0.00026819,2]
[358043925,1744667443881,-500.0,0.00026819,2]
[358043927,1744667443891,-500.0,0.00026819,2]
[358043930,1744667443900,-500.0,0.00026819,2]
[358043933,1744667443910,-250.0,0.00026819,2]
[358043936,1744667443919,-500.0,0.00026819,2]
[358043939,1744667443930,-500.0,0.00026821,2]
[358043942,1744667443940,-257.65371091,0.00026821,2]
[358043945,1744667443950,-500.0,0.00026821,2]
[358043948,1744667443961,-203.9678384,0.00026821,2]
[358043951,1744667443970,-4582.54248869,0.00026821,2]
[358043955,1744667443983,-1933.78,0.00026821,2]
[358043959,1744667444000,-189.4056773,0.00026821,2]
[358043962,1744667444010,-340.77259761,0.00026821,2]
[358043966,1744667444022,-1123.57192519,0.00026821,2]
[358043968,1744667444032,-53645.8253279,0.00026822,2]
[358043970,1744667444042,-11714.7561824,0.00026822,2]
[358043972,1744667444053,-18944.08176142,0.00026831,2]
[358044150,1744667446194,-36346.4771558,0.00026831,2]
[358044151,1744667446257,-659.42456685,0.00026831,2]
[358044152,1744667446269,-2636.56816829,0.00026831,2]
[358044153,1744667446279,-1326.17596078,0.00026831,3]
[358044502,1744668632281,-300.0,0.00025796,2]
[358044504,1744668632292,-300.0,0.00025796,2]
[358044506,1744668632302,-2714.29308636,0.00025797,2]
[358044509,1744668632315,-303.09553512,0.00025797,2]
[358044511,1744668632327,-6333.67103448,0.00025797,2]
[358044513,1744668632341,-15548.94034404,0.00025797,2]